bitfinex/quotes_ETHUSD_20230116
["timestamp","ask_amount","ask_price","bid_price","bid_amount"]
[1673904837011,13.57961325,1581.8,1581.4,1.32040066]
[1673904837342,0.93552325,1581.7,1581.3,3.76349254]
[1673904837506,6.32279,1581.6,1581.3,3.76349254]
[1673904837865,7.25803325,1581.7,1581.3,3.76349254]
[1673904838464,6.32251,1581.7,1581.3,3.76349254]
[1673904838800,12.64502,1581.7,1581.3,3.76349254]
[1673904839126,12.64502,1581.7,1581.4,0.37634925]
[1673904839341,13.58054325,1581.7,1581.4,0.37634925]
[1673904839720,19.90305325,1581.7,1581.3,0.10837009]
[1673904839973,5.55714732,1581.6,1581.3,0.10837009]
[1673904840282,23.49607732,1581.5,1581.3,0.10837009]
[1673904840494,24.89710595,1581.5,1581.3,0.10837009]
[1673904840706,2.4897106,1581.4,1581.3,0.10837009]
[1673904840860,16.07225385,1581.4,1581.3,0.10492946]
[1673904841067,15.1367306,1581.4,1581.3,0.10492946]
[1673904841722,20.58990655,1581.4,1581.3,0.10492946]
[1673904842754,20.91887792,1581.4,1581.3,0.10492946]
[1673904842961,20.81990655,1581.4,1581.3,0.10492946]
[1673904843178,21.4602406,1581.4,1581.3,0.10492946]
[1673904843702,22.39576385,1581.4,1581.3,0.10492946]
[1673904843915,21.4602406,1581.4,1581.3,0.10492946]
[1673904845291,18.97053,1581.4,1581.3,0.10492946]
[1673904847392,12.64702,1581.4,1581.3,1.01792946]
[1673904847605,12.64702,1581.4,1581.3,0.10492946]
[1673904849657,13.58254325,1581.4,1581.3,0.10492946]
[1673904849873,0.93552325,1581.5,1581.3,1.01792946]
[1673904850183,7.25826325,1581.6,1581.4,1.01479295]
[1673904851385,21.30424188,1581.7,1581.4,1.01479295]
[1673904851604,14.98157188,1581.7,1581.4,1.01479295]
[1673904851934,14.98157188,1581.7,1581.5,0.10147929]
[1673904852289,13.58054325,1581.7,1581.5,0.10147929]
[1673904853106,14.98157188,1581.7,1581.5,0.10147929]
[1673904853541,0.93552325,1581.7,1581.5,0.10147929]
[1673904854278,8.65847188,1581.8,1581.5,0.10147929]
[1673904854874,0.93552325,1581.8,1581.5,20.34977929]
[1673904855084,0.93552325,1581.8,1581.6,2.03497793]
[1673904855312,0.93552325,1581.8,1581.6,8.35765793]
[1673904856863,1.40102863,1581.9,1581.6,8.35765793]
[1673904856864,2.33655188,1581.9,1581.6,8.35765793]
[1673904857110,2.33655188,1581.9,1581.6,11.474282]
[1673904857271,2.33655188,1581.9,1581.7,1.1474282]
[1673904857484,0.93552325,1581.9,1581.7,7.4696182]
[1673904858280,2.33655188,1582.0,1581.7,7.4696182]
[1673904859617,0.93552325,1582.0,1581.7,7.4696182]
[1673904860550,2.33655188,1582.0,1581.7,7.4696182]
[1673904860882,2.33655188,1582.0,1581.8,0.74696182]
[1673904861075,0.93552325,1581.9,1581.8,0.74696182]
[1673904861523,1.40102863,1582.0,1581.7,4.1474282]
[1673904861524,2.33655188,1582.0,1581.7,4.1474282]
[1673904861998,8.65766188,1582.0,1581.7,4.1474282]
[1673904862208,8.65766188,1582.0,1581.5,8.42442929]
[1673904862209,2.33655188,1581.9,1581.5,8.42442929]
[1673904862420,2.33655188,1581.9,1581.4,21.85971]
[1673904862421,0.93552325,1581.8,1581.4,20.66671]
[1673904862684,0.93552325,1581.7,1581.5,3.0]
[1673904863216,0.93552325,1581.7,1581.4,3.0]
[1673904863652,0.93552325,1581.7,1581.4,11.75036595]
[1673904864169,0.93552325,1581.7,1581.4,18.07387595]
[1673904864343,2.33655188,1581.8,1581.4,18.07387595]
[1673904864550,2.33655188,1581.8,1581.4,27.51401002]
[1673904864773,0.93552325,1581.8,1581.4,28.79401002]
[1673904865076,0.93552325,1581.8,1581.5,15.525181]
[1673904865540,0.93552325,1581.8,1581.5,18.64180507]
[1673904865862,1.40102863,1581.9,1581.5,24.96491507]
[1673904865863,2.33655188,1581.9,1581.5,24.96491507]
[1673904867610,0.93552325,1581.8,1581.5,24.96491507]
[1673904870646,0.93552325,1581.8,1581.5,18.64180507]
[1673904872493,0.93552325,1581.8,1581.6,1.86418051]
[1673904872659,1.40102863,1581.9,1581.6,8.18672051]
[1673904872660,2.33655188,1581.9,1581.6,8.18672051]
[1673904873600,0.93552325,1581.8,1581.6,8.18672051]
[1673904875270,2.33655188,1581.9,1581.6,6.32254]
[1673904875536,7.25756325,1581.8,1581.4,10.60339]
[1673904875750,8.65859188,1581.8,1581.4,10.60339]
[1673904876363,8.65859188,1581.8,1581.4,9.32339]
[1673904876528,0.93552325,1581.7,1581.4,9.32339]
[1673904876738,0.93552325,1581.7,1581.4,10.76039]
[1673904876999,0.93552325,1581.6,1581.3,0.10492946]
[1673904877322,12.64622,1581.5,1581.3,0.10492946]
[1673904877530,7.25839325,1581.6,1581.3,0.10492946]
[1673904877531,8.65942188,1581.6,1581.3,0.10492946]
[1673904877843,8.65942188,1581.6,1581.3,0.10143899]
[1673904877844,14.98233188,1581.6,1581.3,0.10143899]
[1673904878059,7.25864325,1581.5,1581.3,0.10143899]
[1673904878365,0.72586433,1581.4,1581.3,0.10143899]
[1673904878536,7.04937433,1581.4,1581.3,0.10143899]
[1673904879398,20.63191758,1581.4,1581.3,0.10143899]
[1673904879573,26.82594313,1581.4,1581.3,0.10143899]
[1673904880416,28.22988051,1581.4,1581.3,0.10143899]
[1673904880627,27.99988051,1581.4,1581.3,0.10143899]
[1673904881100,26.59594313,1581.4,1581.3,0.10143899]
[1673904882398,26.12812655,1581.4,1581.3,0.10143899]
[1673904882982,27.99945128,1581.4,1581.3,0.10143899]
[1673904883195,26.12812655,1581.4,1581.3,0.10143899]
[1673904885430,24.64112655,1581.4,1581.3,0.10143899]
[1673904885830,26.54594313,1581.4,1581.3,0.10143899]
[1673904886816,28.68145397,1581.4,1581.3,0.0912951]
[1673904887125,29.3416184,1581.4,1581.3,0.05254647]
[1673904887347,2.0,1581.3,1581.2,0.11861445]
[1673904887662,34.5262695,1581.3,1581.2,0.11861445]
[1673904887873,32.5262695,1581.3,1581.2,0.11861445]
[1673904888820,31.13120124,1581.3,1581.2,0.11861445]
[1673904888967,34.13120124,1581.3,1581.2,0.11861445]
[1673904890177,34.13120124,1581.3,1581.0,0.12786381]
[1673904890178,2.0,1581.2,1581.0,0.12786381]
[1673904890386,35.2624528,1581.1,1581.0,0.12786381]
[1673904890765,36.39485924,1581.1,1581.0,0.12786381]
[1673904890966,38.26242961,1581.1,1581.0,0.12786381]
[1673904891175,36.86175763,1581.1,1581.0,0.12786381]
[1673904891446,36.86175763,1581.1,1580.9,0.10112568]
[1673904891447,2.73799538,1581.0,1580.9,0.10112568]
[1673904891632,23.60875477,1581.0,1580.9,0.10112568]
[1673904891802,27.90975477,1581.0,1580.9,0.10112568]
[1673904892490,34.23486477,1581.0,1580.9,0.10112568]
[1673904893063,35.16765448,1581.0,1580.9,0.10112568]
[1673904893278,41.82965448,1581.0,1580.9,5.68e-06]
[1673904893491,41.8288809,1581.0,1580.8,0.10679238]
[1673904893749,10.3712884,1580.9,1580.8,0.10679238]
[1673904894068,29.3478184,1580.9,1580.8,0.10679238]
[1673904894958,28.8730184,1580.9,1580.8,0.10679238]
[1673904895641,24.4360184,1580.9,1580.8,0.10679238]
[1673904898267,19.37093762,1580.8,1580.5,0.11861445]
[1673904898635,23.92456169,1580.8,1580.5,0.11861445]
[1673904898755,27.04015529,1580.8,1580.5,0.11861445]
[1673904900068,25.60315529,1580.8,1580.5,0.11861445]
[1673904900890,27.03915529,1580.8,1580.5,0.11861445]
[1673904901736,23.92356169,1580.8,1580.5,0.11861445]
[1673904901954,22.48756169,1580.8,1580.5,0.11861445]
[1673904902692,19.37093762,1580.8,1580.5,0.11861445]
[1673904905393,19.37093762,1580.8,1580.7,1.01412568]
[1673904905394,6.71911762,1580.8,1580.7,1.01412568]
[1673904907322,0.39320762,1580.8,1580.7,1.01412568]
[1673904908983,0.39320762,1580.8,1580.5,8.44572445]
[1673904909336,0.39320762,1580.8,1580.6,0.84457245]
[1673904910445,13.04502762,1580.8,1580.5,0.11861445]
[1673904910654,20.80814762,1580.8,1580.5,0.11861445]
[1673904911754,23.92477169,1580.8,1580.5,0.11861445]
[1673904912696,12.65342,1580.6,1580.5,0.11861445]
[1673904913567,6.71911762,1580.8,1580.5,0.11861445]
[1673904913709,0.39320762,1580.8,1580.7,1.426]
[1673904913914,0.39320762,1580.8,1580.6,15.75421561]
[1673904914176,0.39320762,1580.8,1580.6,1.67485561]
[1673904914335,6.71928762,1580.8,1580.6,1.67485561]
[1673904915123,13.04536762,1580.8,1580.6,1.67485561]
[1673904915347,1.30453676,1580.7,1580.6,1.67485561]
[1673904915492,13.95715676,1580.7,1580.6,1.67485561]
[1673904919606,14.88917289,1580.7,1580.6,1.67485561]
[1673904920279,13.95715676,1580.7,1580.6,1.67485561]
[1673904920502,1.08048556,1580.5,1580.4,0.12038645]
[1673904920821,34.95489895,1580.5,1580.4,0.12038645]
[1673904921020,38.41694158,1580.5,1580.4,0.12038645]
[1673904921352,2.0,1580.4,1580.2,0.12235381]
[1673904921494,35.84019694,1580.3,1580.2,0.12235381]
[1673904921705,39.82027594,1580.3,1580.2,0.12235381]
[1673904921943,39.35062261,1580.3,1580.2,0.12235381]
[1673904922161,36.88302812,1580.3,1580.2,0.12235381]
[1673904923496,38.285965,1580.3,1580.2,0.12235381]
[1673904923949,36.88302812,1580.3,1580.2,0.12235381]
[1673904926227,35.94768573,1580.3,1580.2,0.12235381]
[1673904927694,36.88302812,1580.3,1580.2,0.12235381]
[1673904928571,36.88302812,1580.3,1580.0,0.12038645]
[1673904928572,8.662,1580.2,1580.0,0.12038645]
[1673904928741,34.29246407,1580.1,1580.0,0.12038645]
[1673904928950,34.76746407,1580.1,1580.0,0.12038645]
[1673904929218,34.99746407,1580.1,1580.0,0.12038645]
[1673904929393,37.36110169,1580.1,1580.0,0.12038645]
[1673904929739,37.31981737,1580.1,1580.0,0.12038645]
[1673904930058,36.38517975,1580.1,1580.0,0.12038645]
[1673904932638,36.38517975,1580.1,1579.9,0.13058515]
[1673904932639,44.48417975,1580.1,1579.9,0.0009716]
[1673904933005,44.48417975,1580.1,1579.8,0.13233635]
[1673904933006,10.49306704,1579.9,1579.8,0.13233635]
[1673904933321,45.50683111,1579.9,1579.8,0.13233635]
[1673904933549,46.15317029,1579.9,1579.8,0.13233635]
[1673904933703,6.662,1579.6,1579.5,8e-06]
[1673904933886,6.662,1579.6,1579.3,0.0060183]
[1673904933887,38.31316083,1579.6,1579.3,0.0060183]
[1673904934098,38.31316083,1579.6,1578.9,0.15428812]
[1673904934099,31.77862407,1579.4,1578.9,0.15428812]
[1673904934323,29.80142,1579.3,1578.9,0.15428812]
[1673904934571,18.99936,1579.0,1578.9,0.15428812]
[1673904934737,28.51818744,1579.0,1578.9,0.15428812]
[1673904934953,28.04288744,1579.0,1578.9,0.15428812]
[1673904935880,4.37652744,1579.0,1578.9,1.06728812]
[1673904936160,4.37652744,1579.0,1578.9,0.15428812]
[1673904936161,3.11662407,1579.0,1578.9,0.15428812]
[1673904936322,15.78286407,1579.0,1578.9,0.15428812]
[1673904937251,16.01286407,1579.0,1578.9,0.15428812]
[1673904937909,19.01286407,1579.0,1578.9,0.15428812]
[1673904938218,24.26262748,1579.0,1578.9,0.15428812]
[1673904938848,32.92462748,1579.0,1578.9,0.15428812]
[1673904939197,24.26262748,1579.0,1578.9,0.15428812]
[1673904940432,22.83262748,1579.0,1578.9,0.15428812]
[1673904940660,9.44974407,1579.0,1578.9,0.15428812]
[1673904941472,15.78286407,1579.0,1578.9,0.15428812]
[1673904942297,16.01286407,1579.0,1578.9,0.15428812]
[1673904942563,9.44974407,1579.0,1578.9,0.15428812]
[1673904942710,6.33277,1579.1,1578.9,0.15428812]
[1673904942923,0.4753,1579.2,1578.9,0.15428812]
[1673904942924,6.33243,1579.2,1578.9,0.15428812]
[1673904943134,9.44905407,1579.2,1578.9,1.58628812]
[1673904943587,30.2721,1579.3,1579.0,1.43]
[1673904943588,6.3323,1579.3,1579.0,1.43]
[1673904943801,9.44892407,1579.3,1579.0,1.43]
[1673904945495,9.44892407,1579.3,1578.9,1.59128812]
[1673904945496,3.11662407,1579.2,1578.9,1.59128812]
[1673904945651,6.33312,1579.0,1578.9,0.15428812]
[1673904945862,6.33278,1579.1,1578.9,0.15428812]
[1673904946116,9.44940407,1579.1,1578.9,0.15428812]
[1673904946355,6.33245,1579.2,1578.9,0.15428812]
[1673904946356,12.66497,1579.2,1578.9,0.15428812]
[1673904946553,3.11662407,1579.1,1578.9,0.15428812]
[1673904946870,6.33312,1579.0,1578.9,0.15428812]
[1673904947176,12.66140643,1579.0,1578.9,0.15428812]
[1673904947498,22.1111505,1579.0,1578.9,0.15428812]
[1673904947814,23.7781505,1579.0,1578.9,0.15428812]
[1673904947970,29.30268529,1579.0,1578.9,0.15428812]
[1673904948182,32.30268529,1579.0,1578.9,0.15428812]
[1673904948695,30.30268529,1579.0,1578.9,0.15428812]
[1673904948912,28.86568529,1579.0,1578.9,0.15428812]
[1673904949174,28.39038529,1579.0,1578.9,0.15428812]
[1673904950933,29.81738529,1579.0,1578.9,0.15428812]
[1673904951115,30.29268529,1579.0,1578.9,0.15428812]
[1673904952069,28.86568529,1579.0,1578.9,0.15428812]
[1673904952310,28.39038529,1579.0,1578.9,0.15428812]
[1673904952695,30.30268529,1579.0,1578.9,0.15428812]
[1673904953340,36.96468529,1579.0,1578.9,0.15428812]
[1673904955036,30.30268529,1579.0,1578.9,0.15428812]
[1673904956920,29.82738529,1579.0,1578.9,0.15428812]
[1673904957128,15.7780305,1579.0,1578.9,0.15428812]
[1673904957445,9.4449105,1579.0,1578.9,0.15428812]
[1673904958059,3.11662407,1579.0,1578.9,0.15428812]
[1673904958511,6.33305,1579.1,1578.9,0.15428812]
[1673904958689,9.44967407,1579.1,1578.9,0.15428812]
[1673904959361,9.33201,1579.3,1578.9,0.15428812]
[1673904959581,15.78084407,1579.3,1578.9,0.29671693]
[1673904959735,6.33272,1579.1,1578.9,0.15428812]
[1673904959946,15.78206407,1579.1,1578.9,0.15428812]
[1673904961152,3.11662407,1579.0,1578.9,0.15428812]
[1673904961364,15.78286407,1579.0,1578.9,0.15428812]
[1673904962638,9.44974407,1579.0,1578.9,0.15428812]
[1673904963662,6.33272,1579.1,1578.9,0.15428812]
[1673904963880,9.44934407,1579.1,1578.9,0.15428812]
[1673904964089,6.80731,1579.3,1578.9,0.15428812]
[1673904964432,6.33173,1579.4,1578.9,14.24582693]
[1673904964736,9.44835407,1579.4,1578.9,16.24582693]
[1673904967542,9.44835407,1579.4,1578.9,14.24582693]
[1673904967835,12.66282,1579.5,1579.0,1.42458269]
[1673904968054,15.77944407,1579.5,1579.1,1.281]
[1673904968308,9.44797407,1579.5,1579.1,7.61371]
[1673904968460,12.66189,1579.6,1579.1,13.94643]
[1673904968675,12.66189,1579.6,1579.1,16.11681527]
[1673904968676,15.77851407,1579.6,1579.1,16.11681527]
[1673904968960,15.77851407,1579.6,1579.1,9.78409527]
[1673904970412,9.44754407,1579.6,1579.1,16.11681527]
[1673904970587,9.44754407,1579.6,1579.1,24.44609505]
[1673904971156,9.44754407,1579.6,1579.1,18.11337505]
[1673904971367,9.44754407,1579.6,1579.2,8.1435775]
[1673904972045,15.77844407,1579.6,1579.2,1.8113375]
[1673904972585,9.44752407,1579.6,1579.2,8.1435675]
[1673904973123,10.38216169,1579.6,1579.2,8.1435675]
[1673904973353,16.71306169,1579.6,1579.2,8.1435675]
[1673904973541,15.77842407,1579.6,1579.2,8.1435675]
[1673904974361,9.44752407,1579.6,1579.2,8.1435675]
[1673904974615,3.11662407,1579.5,1579.1,1.27755978]
[1673904974851,3.11662407,1579.5,1578.9,13.48008812]
[1673904974852,22.11139407,1579.4,1578.9,13.48008812]
[1673904975133,12.66472,1579.2,1578.9,11.48008812]
[1673904975344,9.44894407,1579.2,1578.9,1.43528812]
[1673904975669,10.63042669,1579.2,1578.9,0.15428812]
[1673904976128,16.96274669,1579.2,1578.9,0.15428812]
[1673904976348,3.11662407,1579.1,1578.9,0.15428812]
[1673904976594,15.78286407,1579.0,1578.9,0.15428812]
[1673904977394,15.78286407,1579.0,1578.3,2.44350091]
[1673904977395,6.662,1578.8,1578.3,2.44350091]
[1673904977656,6.662,1578.8,1578.1,0.10101329]
[1673904977657,6.33512,1578.5,1578.1,0.10101329]
[1673904977823,3.11662407,1578.4,1578.1,0.10101329]
[1673904978030,3.11662407,1578.3,1578.1,0.10101329]
[1673904978289,9.45257407,1578.3,1578.1,0.10101329]
[1673904979333,3.11662407,1578.2,1578.1,0.10101329]
[1673904979505,16.01928407,1578.2,1578.1,0.10101329]
[1673904979722,17.35239686,1578.2,1578.1,0.10101329]
[1673904981862,17.12239686,1578.2,1578.1,0.10101329]
[1673904982299,10.78606686,1578.2,1578.1,0.10101329]
[1673904982603,3.11662407,1578.2,1578.1,0.10101329]
[1673904983442,9.45295407,1578.2,1578.1,0.10101329]
[1673904983752,10.11678074,1578.2,1578.1,0.10101329]
[1673904984389,16.45311074,1578.2,1578.1,0.10101329]
[1673904985185,22.78944074,1578.2,1578.1,0.10101329]
[1673904986046,10.11678074,1578.2,1578.1,0.10101329]
[1673904986268,0.66382667,1578.2,1578.1,0.10101329]
[1673904986781,22.78944074,1578.2,1578.1,1.329e-05]
[1673904987174,0.66382667,1578.2,1578.1,1.329e-05]
[1673904987594,3.81660074,1578.2,1578.1,1.329e-05]
[1673904987819,16.48926074,1578.2,1578.1,1.329e-05]
[1673904988025,16.71926074,1578.2,1578.1,1.329e-05]
[1673904988908,10.15293074,1578.2,1578.1,1.329e-05]
[1673904989486,16.48926074,1578.2,1578.1,1.329e-05]
[1673904990802,16.71926074,1578.2,1578.1,1.329e-05]
[1673904990954,16.48926074,1578.2,1578.1,1.329e-05]
[1673904991167,15.78928407,1578.2,1578.1,1.329e-05]
[1673904994205,9.45295407,1578.2,1578.1,1.329e-05]
[1673904994414,6.33594,1578.3,1578.1,1.329e-05]
[1673904994629,6.33549,1578.5,1578.1,6.33671329]
[1673904994874,6.33549,1578.5,1578.1,1.329e-05]
[1673904994875,15.78766407,1578.4,1578.1,1.329e-05]
[1673904995103,6.33633,1578.2,1578.1,1.329e-05]
[1673904995262,22.12561407,1578.2,1578.1,1.329e-05]
[1673904996592,15.78928407,1578.2,1578.1,1.329e-05]
[1673904996804,3.11662407,1578.2,1578.1,1.329e-05]
[1673904997115,3.11662407,1578.2,1578.1,0.91301329]
[1673904997348,6.3358,1578.4,1578.1,0.91301329]
[1673904997553,17.05533007,1578.4,1578.1,0.91301329]
[1673904997782,17.05533007,1578.4,1578.1,1.329e-05]
[1673904997783,3.11662407,1578.3,1578.1,1.329e-05]
[1673904998099,15.78928407,1578.2,1578.1,1.329e-05]
[1673904998288,22.12561407,1578.2,1578.1,1.329e-05]
[1673905000355,23.63661407,1578.2,1578.1,1.329e-05]
[1673905000733,25.35970348,1578.2,1578.1,1.329e-05]
[1673905001092,24.07870348,1578.2,1578.1,1.329e-05]
[1673905001515,25.35570348,1578.2,1578.1,1.329e-05]
[1673905002196,25.35570348,1578.2,1577.7,0.18288655]
[1673905002197,0.00198671,1578.0,1577.7,0.18288655]
[1673905002511,15.79168407,1577.9,1577.7,0.18288655]
[1673905002720,3.11662407,1577.8,1577.7,0.18288655]
[1673905003346,9.45455407,1577.8,1577.7,0.18288655]
[1673905003982,6.33924671,1578.0,1577.7,0.18288655]
[1673905004217,3.11861078,1578.0,1577.7,0.18288655]
[1673905004444,3.11861078,1578.0,1577.7,3.18288655]
[1673905004738,3.11662407,1577.9,1577.7,3.18288655]
[1673905004895,3.11662407,1577.9,1577.7,0.18288655]
[1673905005100,9.45428407,1577.9,1577.7,0.18288655]
[1673905005360,13.94343271,1578.0,1577.7,0.18288655]
[1673905005361,0.00198671,1578.0,1577.7,0.18288655]
[1673905006150,0.00198671,1578.0,1577.7,6.52113655]
[1673905006413,0.00198671,1578.0,1577.8,0.65211365]
[1673905006627,0.00198671,1578.0,1577.7,6.52113655]
[1673905006854,3.11662407,1577.9,1577.7,0.18288655]
[1673905007019,3.59232407,1577.8,1577.7,0.18288655]
[1673905007583,9.93025407,1577.8,1577.7,0.18288655]
[1673905007724,9.45455407,1577.8,1577.7,0.18288655]
[1673905008200,0.00198671,1578.0,1577.7,0.18288655]
[1673905008519,0.00198671,1578.0,1577.7,7.80208655]
[1673905008882,0.00198671,1578.0,1577.8,3.0]
[1673905009143,0.00198671,1578.0,1577.9,14.67506]
[1673905009371,0.00198671,1578.0,1577.9,21.346342]
[1673905009582,0.00198671,1578.0,1577.9,15.008812]
[1673905009719,0.00198671,1578.0,1577.8,1.281]
[1673905009930,0.00198671,1578.0,1577.7,8.89198655]
[1673905010188,0.00198671,1578.0,1577.7,0.18288655]
[1673905010570,0.00198671,1578.0,1577.7,6.52120655]
[1673905010783,0.00198671,1578.0,1577.8,7.61886]
[1673905011031,0.00198671,1578.0,1577.9,2.0]
[1673905011420,0.00198671,1578.0,1577.9,9.61853]
[1673905011688,0.00198671,1578.0,1577.9,12.61853]
[1673905012679,0.00198671,1578.0,1577.9,18.95606]
[1673905013150,0.00198671,1578.0,1577.9,1.281]
[1673905013368,1.82198671,1578.0,1577.8,3.0]
[1673905013545,3.11662407,1577.9,1577.7,3.18288655]
[1673905013877,3.11662407,1577.8,1577.7,0.18288655]
[1673905014067,6.81323,1577.9,1577.7,0.18288655]
[1673905014299,0.4757,1577.9,1577.7,0.18288655]
[1673905014715,0.47758671,1578.0,1577.7,0.18288655]
[1673905014894,3.11861078,1578.0,1577.7,0.18288655]
[1673905015108,0.00198671,1578.0,1577.7,7.80221655]
[1673905015419,0.00198671,1578.0,1577.7,9.08243821]
[1673905015677,0.00198671,1578.0,1577.7,7.80221655]
[1673905016629,0.00198671,1578.0,1577.3,4.99740415]
[1673905016630,0.00198671,1578.0,1577.1,7.76424689]
[1673905016781,0.00198671,1578.0,1576.9,0.17279923]
[1673905016782,3.11861078,1578.0,1576.9,0.17279923]
[1673905016999,3.11662407,1577.9,1576.9,0.17279923]
[1673905017207,3.11662407,1577.8,1576.9,2.17279923]
[1673905017675,9.45462407,1577.8,1576.9,2.17279923]
[1673905018274,3.11662407,1577.7,1576.9,11.51404923]
[1673905018486,9.45519407,1577.7,1576.9,5.17279923]
[1673905018726,6.338,1577.8,1576.9,5.17279923]
[1673905019050,3.11662407,1577.7,1576.9,16.14754471]
[1673905019361,3.11662407,1577.6,1576.9,16.14754471]
[1673905019789,6.33798,1577.8,1576.9,16.14754471]
[1673905019941,3.11662407,1577.7,1576.9,11.51406923]
[1673905020396,6.33798,1577.8,1576.9,19.51854904]
[1673905020613,9.45460407,1577.8,1576.9,19.51854904]
[1673905021029,15.79280407,1577.8,1576.9,19.51854904]
[1673905021250,3.11662407,1577.7,1576.9,19.51854904]
[1673905021419,15.79371407,1577.7,1576.9,19.51854904]
[1673905022414,3.11662407,1577.6,1576.9,11.51406923]
[1673905022567,9.45566407,1577.6,1576.9,11.51406923]
[1673905022789,3.11662407,1577.0,1576.8,3.32560007]
[1673905023043,6.662,1577.2,1576.8,0.0060183]
[1673905023044,3.11662407,1576.9,1576.8,0.0060183]
[1673905023221,9.45817407,1576.9,1576.8,0.0060183]
[1673905023754,9.91431124,1576.9,1576.8,0.0060183]
[1673905023994,16.25586124,1576.9,1576.8,0.0060183]
[1673905024142,18.51559836,1576.9,1576.8,0.0060183]
[1673905024354,18.74559836,1576.9,1576.8,0.0060183]
[1673905024578,18.28946119,1576.9,1576.8,0.0060183]
[1673905024824,18.05946119,1576.9,1576.8,0.0060183]
[1673905025043,15.79972407,1576.9,1576.8,0.0060183]
[1673905026090,6.34151,1577.0,1576.8,0.0060183]
[1673905026308,31.1905,1577.2,1576.8,0.0060183]
[1673905026309,6.34056,1577.2,1576.8,0.0060183]
[1673905026649,9.45718407,1577.2,1576.8,0.0060183]
[1673905026933,6.34115,1577.0,1576.8,0.0060183]
[1673905027104,3.11662407,1576.9,1576.8,0.0060183]
[1673905027313,15.79972407,1576.9,1576.8,0.0060183]
[1673905027542,6.34115,1577.0,1576.8,0.0060183]
[1673905027738,6.34114,1577.1,1576.8,0.0060183]
[1673905027943,9.45776407,1577.1,1576.8,0.0060183]
[1673905028908,3.11662407,1577.0,1576.8,0.0060183]
[1673905029129,3.11662407,1576.9,1576.8,0.0060183]
[1673905029304,22.14127407,1576.9,1576.8,0.0060183]
[1673905030363,22.14127407,1576.9,1576.4,1.0721077]
[1673905030364,2.0,1576.8,1576.4,1.0721077]
[1673905030571,19.02828,1576.6,1576.4,1.0721077]
[1673905030783,15.80294407,1576.5,1576.4,1.0721077]
[1673905031857,18.03294407,1576.5,1576.4,1.0721077]
[1673905032249,18.50904407,1576.5,1576.4,1.0721077]
[1673905032454,21.50904407,1576.5,1576.4,1.0721077]
[1673905032699,22.92850048,1576.5,1576.4,1.0721077]
[1673905033870,24.92850048,1576.5,1576.4,1.0721077]
[1673905034186,25.37588,1576.3,1576.1,0.17279923]
[1673905034399,16.51156407,1576.2,1576.1,0.17279923]
[1673905034556,15.80536407,1576.2,1576.1,0.17279923]
[1673905035034,6.82017,1576.3,1576.1,0.17279923]
[1673905035035,6.34397,1576.3,1576.1,0.17279923]
[1673905035339,3.11662407,1576.3,1576.1,0.17279923]
[1673905035511,3.11662407,1576.2,1576.1,0.17279923]
[1673905035729,15.80536407,1576.2,1576.1,0.17279923]
[1673905036440,18.02029748,1576.2,1576.1,0.17279923]
[1673905036941,9.46099407,1576.2,1576.1,0.17279923]
[1673905037449,3.11662407,1576.2,1576.1,0.17279923]
[1673905037603,15.80536407,1576.2,1576.1,0.17279923]
[1673905038700,9.46099407,1576.2,1576.1,0.17279923]
[1673905039016,3.11662407,1576.2,1576.1,0.17279923]
[1673905039536,6.34397,1576.3,1576.1,0.17279923]
[1673905039754,15.28999,1576.5,1576.1,0.17279923]
[1673905039755,6.34349,1576.5,1576.1,0.17279923]
[1673905039909,9.46011407,1576.5,1576.1,4.04343772]
[1673905040322,3.11662407,1576.4,1576.1,4.04343772]
[1673905040536,3.11662407,1576.4,1576.1,3.17279923]
[1673905040809,3.11662407,1576.4,1576.2,3.0]
[1673905040999,3.11662407,1576.3,1576.1,0.17279923]
[1673905041203,3.11662407,1576.3,1575.3,5.2311046]
[1673905041204,3.11662407,1576.2,1574.9,60.54606122]
[1673905041391,3.11662407,1576.2,1575.7,4.01993828]
[1673905041392,9.46125407,1576.2,1575.7,4.01993828]
[1673905041605,15.31026,1576.4,1575.8,6.74767383]
[1673905041820,6.34345,1576.5,1575.9,19.03656]
[1673905042026,9.46007407,1576.5,1575.9,19.03656]
[1673905042794,9.46007407,1576.5,1576.0,2.0]
[1673905043114,9.46007407,1576.5,1576.0,14.68988]
[1673905043432,9.46007407,1576.5,1576.1,7.813748]
[1673905043640,8.24184141,1577.1,1576.2,3.0]
[1673905043641,6.34175,1576.9,1576.2,3.0]
[1673905043791,3.11662407,1576.9,1576.2,3.0]
[1673905044007,31.43849,1577.2,1576.4,19.03056]
[1673905044252,31.7916,1577.2,1576.5,3.0]
[1673905044490,31.7916,1577.2,1576.6,12.98515]
[1673905044703,3.11662407,1577.1,1576.7,3.0]
[1673905045005,12.81022407,1577.2,1576.8,12.6837]
[1673905045159,27.4049,1577.4,1576.9,3.0]
[1673905045374,3.11662407,1577.3,1576.9,9.34138]
[1673905045596,3.11662407,1577.3,1576.9,4.32131245]
[1673905045597,3.42828648,1577.2,1576.9,4.32131245]
[1673905045807,5.11662407,1577.1,1576.9,1.32131245]
[1673905046047,3.11662407,1577.0,1576.5,12.68608]
[1673905046262,3.11662407,1577.0,1576.5,12.68607976]
[1673905046480,3.11662407,1576.9,1576.4,12.68649]
[1673905046791,3.11662407,1576.9,1576.4,14.65414692]
[1673905047156,3.11662407,1576.9,1576.5,3.0]
[1673905047639,3.11662407,1576.9,1576.5,9.34293]
[1673905047996,10.17036241,1577.2,1576.5,16.33242918]
[1673905048296,6.11662407,1577.1,1576.5,16.33242918]
[1673905048470,6.11662407,1577.1,1576.6,1.63324292]
[1673905048656,3.11662407,1577.1,1576.7,6.34215]
[1673905048865,3.11662407,1577.1,1576.8,3.0]
[1673905049153,23.9291,1577.4,1576.8,15.68364]
[1673905049512,3.11662407,1577.3,1576.8,15.68364]
[1673905049679,3.59252407,1577.3,1577.0,6.34107]
[1673905049890,26.9291,1577.4,1576.8,9.98802918]
[1673905049891,3.11662407,1577.1,1576.8,0.64633918]
[1673905050136,1.10639263,1576.7,1575.8,8.60495695]
[1673905050350,6.59272407,1576.6,1575.9,6.34538]
[1673905050564,9.2203415,1576.5,1575.8,6.54077695]
[1673905050775,8.56106909,1576.4,1575.8,0.19505695]
[1673905050966,17.90470909,1576.4,1575.8,0.19505695]
[1673905051156,0.4762,1576.3,1575.8,0.19505695]
[1673905051525,5.91571246,1576.3,1575.8,0.19505695]
[1673905051674,6.70819532,1576.2,1575.8,0.19505695]
[1673905051885,6.11662407,1576.1,1575.8,0.19505695]
[1673905052215,0.4762,1576.3,1575.8,0.19505695]
[1673905052422,3.0,1576.4,1575.8,0.19505695]
[1673905052423,5.43304449,1576.4,1575.8,0.19505695]
[1673905052672,0.4761,1576.5,1575.8,0.19505695]
[1673905052824,0.4761,1576.6,1575.8,7.19498764]
[1673905053041,1.10639263,1576.7,1575.8,7.19498764]
[1673905053042,1.10639263,1576.7,1575.8,8.1372801]
[1673905053252,1.10639263,1576.7,1575.9,0.94229246]